fUST/lending_fUST_20250628
["ID","MTS","AMOUNT","RATE_DAILY","PERIOD"]
[368199260,1751057445762,-460.0,0.00019726,2]
[368199262,1751057445771,-855.24,0.00019726,2]
[368199264,1751057445781,-644.2,0.00019726,2]
[368199266,1751057445790,-460.0,0.00019726,2]
[368199268,1751057445800,-706.72,0.00019726,2]
[368199270,1751057445809,-476.41,0.00019726,2]
[368199272,1751057445819,-460.0,0.00019726,2]
[368199274,1751057445830,-502.54,0.00019726,2]
[368199275,1751057445839,-460.0,0.00019726,2]
[368199278,1751057445849,-1822.66,0.00019726,2]
[368199280,1751057445859,-3453.91,0.00019726,2]
[368199282,1751057445870,-460.0,0.00019726,2]
[368199284,1751057445880,-460.0,0.00019726,2]
[368199286,1751057445890,-778.4,0.00019726,2]
[368199288,1751057445899,-460.0,0.00019726,2]
[368199290,1751057445909,-469.16716367,0.00019726,2]
[368199292,1751057445919,-460.0,0.00019726,2]
[368199294,1751057445929,-585.59,0.00019726,2]
[368199296,1751057445939,-1010.79,0.00019726,2]
[368199298,1751057445948,-658.37,0.00019726,2]
[368199300,1751057445957,-5350.64,0.00019726,2]
[368199302,1751057445967,-460.0,0.00019726,2]
[368199304,1751057445977,-531.17756958,0.00019726,2]
[368199306,1751057445986,-460.0,0.00019726,2]
[368199308,1751057445995,-460.0,0.00019726,2]
[368199310,1751057446004,-460.0,0.00019726,2]
[368199312,1751057446013,-460.0,0.00019726,2]
[368199314,1751057446023,-659.18,0.00019726,2]
[368199316,1751057446032,-223.05869188,0.00019773,2]
[368199318,1751057446041,-485.47675397,0.00019778,2]
[368199320,1751057446051,-485.62165416,0.00019779,2]
[368199322,1751057446060,-225.48016869,0.00019783,2]
[368199324,1751057446069,-563.40234166,0.00019791,2]
[368199326,1751057446079,-500.0,0.00019791,2]
[368199328,1751057446089,-500.0,0.00019791,2]
[368199330,1751057446098,-1475.0,0.000198,2]
[368199332,1751057446108,-649.25012357,0.00019811,2]
[368199334,1751057446117,-420.0,0.00019826,2]
[368199336,1751057446127,-5400.64502032,0.000199,2]
[368199338,1751057446136,-460.0,0.0002,2]
[368199340,1751057446147,-460.0,0.0002,2]
[368199342,1751057446156,-460.0,0.0002,2]
[368199344,1751057446165,-460.0,0.0002,2]
[368199346,1751057446175,-153.44106237,0.0002,2]
[368199348,1751057446184,-460.0,0.0002,2]
[368199350,1751057446194,-460.0,0.0002,2]
[368199352,1751057446203,-460.0,0.0002,2]
[368199354,1751057446213,-460.0,0.0002,2]
[368199356,1751057446222,-460.0,0.0002,2]
[368199358,1751057446231,-484.52,0.0002,2]
[368199360,1751057446241,-460.0,0.0002,2]
[368199362,1751057446250,-460.0,0.0002,2]
[368199364,1751057446260,-460.0,0.0002,2]
[368199366,1751057446269,-460.0,0.0002,2]
[368199368,1751057446281,-460.0,0.0002,2]
[368199370,1751057446291,-460.0,0.0002,2]
[368199372,1751057446301,-460.0,0.0002,2]
[368199375,1751057446311,-460.0,0.0002,2]
[368199377,1751057446320,-460.0,0.0002,2]
[368199380,1751057446331,-460.0,0.0002,2]
[368199382,1751057446341,-460.0,0.0002,2]
[368199385,1751057446351,-460.0,0.0002,2]
[368199388,1751057446361,-460.0,0.0002,2]
[368199391,1751057446370,-460.0,0.0002,2]
[368199394,1751057446380,-775.32,0.0002,2]
[368199396,1751057446389,-460.0,0.0002,2]
[368199398,1751057446399,-460.0,0.0002,2]
[368199400,1751057446408,-460.0,0.0002,2]
[368199402,1751057446418,-460.0,0.0002,2]
[368199404,1751057446428,-460.0,0.0002,2]
[368199407,1751057446438,-585.15,0.0002,2]
[368199410,1751057446447,-460.0,0.0002,2]
[368199412,1751057446457,-460.0,0.0002,2]
[368199414,1751057446466,-460.0,0.0002,2]
[368199416,1751057446476,-560.37,0.0002,2]
[368199418,1751057446485,-460.0,0.0002,2]
[368199420,1751057446495,-460.0,0.0002,2]
[368199422,1751057446504,-460.0,0.0002,2]
[368199424,1751057446514,-460.0,0.0002,2]
[368199427,1751057446524,-460.0,0.0002,2]
[368199429,1751057446534,-360.87957347,0.0002,2]
[368199431,1751057446543,-460.0,0.0002,2]
[368199433,1751057446553,-460.0,0.0002,2]
[368199434,1751057446562,-460.0,0.0002,2]
[368199437,1751057446572,-703.46,0.0002,2]
[368199438,1751057446581,-460.0,0.0002,2]
[368199441,1751057446591,-495.33,0.0002,2]
[368199443,1751057446601,-460.0,0.0002,2]
[368199444,1751057446610,-745.75,0.0002,2]
[368199447,1751057446620,-693.38,0.0002,2]
[368199449,1751057446630,-575.63,0.0002,2]
[368199451,1751057446640,-2984.6,0.0002,2]
[368199453,1751057446650,-460.0,0.0002,2]
[368199455,1751057446659,-1038.52,0.0002,2]
[368199457,1751057446669,-460.0,0.0002,2]
[368199459,1751057446678,-657.08,0.0002,2]
[368199461,1751057446687,-997.22,0.0002,2]
[368199463,1751057446698,-483.84,0.0002,2]
[368199464,1751057446707,-460.0,0.0002,2]
[368199466,1751057446717,-1832.72,0.0002,2]
[368199468,1751057446727,-3210.91,0.0002,2]
[368199470,1751057446737,-460.0,0.0002,2]
[368199472,1751057446747,-460.0,0.0002,2]
[368199474,1751057446756,-3005.55,0.0002,2]
[368199477,1751057446766,-469.7,0.0002,2]
[368199479,1751057446776,-460.0,0.0002,2]
[368199481,1751057446786,-545.24,0.0002,2]
[368199483,1751057446796,-523.16,0.0002,2]
[368199485,1751057446805,-460.0,0.0002,2]
[368199487,1751057446815,-2973.32,0.0002,2]
[368199489,1751057446824,-460.0,0.0002,2]
[368199490,1751057446834,-1517.0,0.0002,2]
[368199492,1751057446843,-3468.68,0.0002,2]
[368199495,1751057446853,-1615.82,0.0002,2]
[368199497,1751057446862,-460.0,0.0002,2]
[368199499,1751057446872,-460.0,0.0002,2]
[368199500,1751057446885,-578.54,0.0002,2]
[368199503,1751057446894,-697.99,0.0002,2]
[368199505,1751057446904,-460.0,0.0002,2]
[368199507,1751057446914,-460.0,0.0002,2]
[368199508,1751057446925,-468.39,0.0002,2]
[368199511,1751057446935,-500.0,0.0002,2]
[368199512,1751057446945,-460.0,0.0002,2]
[368199514,1751057446955,-460.0,0.0002,2]
[368199516,1751057446965,-802.01,0.0002,2]
[368199519,1751057446974,-1109.21,0.0002,2]
[368199520,1751057446984,-4979.54,0.0002,2]
[368199523,1751057446994,-460.0,0.0002,2]
[368199524,1751057447004,-1983.49,0.0002,2]
[368199527,1751057447014,-460.0,0.0002,2]
[368199529,1751057447023,-460.0,0.0002,2]
[368199531,1751057447034,-218.69,0.0002,2]
[368199533,1751057447044,-460.0,0.0002,2]
[368199535,1751057447053,-827.65,0.0002,2]
[368199537,1751057447063,-460.0,0.0002,2]
[368199539,1751057447072,-460.0,0.0002,2]
[368199541,1751057447082,-4721.75,0.0002,2]
[368199543,1751057447091,-1506.67,0.0002,2]
[368199545,1751057447100,-593.36,0.0002,2]
[368199547,1751057447110,-734.72,0.0002,2]
[368199549,1751057447119,-607.75,0.0002,2]
[368199551,1751057447128,-460.0,0.0002,2]
[368199553,1751057447138,-460.0,0.0002,2]
[368199555,1751057447148,-702.85,0.0002,2]
[368199557,1751057447158,-1276.3,0.0002,2]
[368199559,1751057447167,-460.0,0.0002,2]
[368199561,1751057447176,-678.03,0.0002,2]
[368199563,1751057447186,-634.71,0.0002,2]
[368199565,1751057447195,-1480.94,0.0002,2]
[368199567,1751057447205,-595.85,0.0002,2]
[368199569,1751057447215,-302.92928088,0.0002,2]
[368199571,1751057447224,-460.0,0.0002,2]
[368199573,1751057447234,-460.0,0.0002,2]
[368199575,1751057447244,-551.29,0.0002,2]
[368199577,1751057447254,-2162.5,0.0002,2]
[368199579,1751057447263,-460.0,0.0002,2]
[368199581,1751057447273,-460.0,0.0002,2]
[368199583,1751057447282,-855.24,0.0002,2]
[368199585,1751057447292,-644.2,0.0002,2]
[368199587,1751057447301,-706.72,0.0002,2]
[368199589,1751057447310,-476.41,0.0002,2]
[368199591,1751057447320,-460.0,0.0002,2]
[368199593,1751057447331,-502.54,0.0002,2]
[368199595,1751057447340,-460.0,0.0002,2]
[368199597,1751057447350,-1822.66,0.0002,2]
[368199599,1751057447360,-3453.91,0.0002,2]
[368199601,1751057447369,-460.0,0.0002,2]
[368199603,1751057447378,-460.0,0.0002,2]
[368199605,1751057447387,-778.4,0.0002,2]
[368199607,1751057447397,-460.0,0.0002,2]
[368199609,1751057447406,-460.0,0.0002,2]
[368199611,1751057447416,-585.59,0.0002,2]
[368199613,1751057447426,-1010.79,0.0002,2]
[368199615,1751057447436,-658.37,0.0002,2]
[368199617,1751057447445,-5350.64,0.0002,2]
[368199619,1751057447455,-460.0,0.0002,2]
[368199621,1751057447465,-523.93088361,0.0002,2]
[368199623,1751057447475,-460.0,0.0002,2]
[368199640,1751057447618,-460.0,0.0002,2]
[368199642,1751057447629,-659.18,0.0002,2]
[368199644,1751057447638,-300.0,0.00020027,2]
[368199646,1751057447647,-485.95985808,0.00020029,2]
[368199648,1751057447657,-160.0,0.00020051,2]
[368199650,1751057447666,-230.26210603,0.00020051,2]
[368199652,1751057447676,-847.04181546,0.00020051,2]
[368199654,1751057447685,-160.0,0.00020051,2]
[368199656,1751057447694,-160.0,0.00020051,2]
[368199658,1751057447704,-836.98798914,0.00020051,2]
[368199660,1751057447714,-12562.41216491,0.00020051,2]
[368199662,1751057447723,-160.0,0.00020051,2]
[368199664,1751057447732,-213.75309343,0.00020051,2]
[368199666,1751057447741,-160.0,0.00020051,2]
[368199668,1751057447750,-214.91804724,0.00020051,2]
[368199670,1751057447759,-160.0,0.00020051,2]
[368199672,1751057447769,-160.0,0.00020051,2]
[368199674,1751057447778,-160.0,0.00020051,2]
[368199676,1751057447787,-160.0,0.00020053,2]
[368199678,1751057447796,-663.82413997,0.00020058,2]
[368199680,1751057447806,-159.0575121,0.0002011,2]
[368199682,1751057447815,-5400.64502003,0.00020141,2]
[368199684,1751057447824,-207.4,0.0002017,2]
[368199686,1751057447833,-5000.0,0.0002017,2]
[368199687,1751057447843,-500.0,0.0002017,2]
[368199689,1751057447852,-500.0,0.0002017,2]
[368199692,1751057447862,-500.0,0.0002017,2]
[368199693,1751057447871,-500.0,0.0002017,2]
[368199696,1751057447885,-500.0,0.0002017,2]
[368199697,1751057447895,-500.0,0.0002017,2]
[368199699,1751057447905,-500.0,0.0002017,2]
[368199701,1751057447917,-381.33984163,0.0002017,2]
[368199703,1751057447926,-534.615849,0.00020187,2]
[368199705,1751057447935,-485.47675397,0.00020204,2]
[368199707,1751057447945,-1409.0,0.00020206,2]
[368199709,1751057447954,-460.0,0.00020273,2]
[368199711,1751057447963,-598.24619751,0.00020273,2]
[368199713,1751057447972,-300.0,0.00020273,2]
[368199715,1751057447982,-460.0,0.00020273,2]
[368199717,1751057447992,-460.0,0.00020273,2]
[368199719,1751057448001,-460.0,0.00020273,2]
[368199721,1751057448010,-460.0,0.00020273,2]
[368199723,1751057448020,-460.0,0.00020273,2]
[368199725,1751057448029,-484.52,0.00020273,2]
[368199727,1751057448038,-460.0,0.00020273,2]
[368199730,1751057448048,-273.04735139,0.00020273,2]
[368199732,1751057448058,-460.0,0.00020273,2]
[368199734,1751057448068,-460.0,0.00020273,2]
[368199736,1751057448077,-460.0,0.00020273,2]
[368199738,1751057448087,-460.0,0.00020273,2]
[368199740,1751057448096,-460.0,0.00020273,2]
[368199742,1751057448106,-367.42878218,0.00020273,2]
[368199744,1751057448117,-341.21598017,0.00020273,2]
[368199746,1751057448126,-460.0,0.00020273,2]
[368199748,1751057448136,-460.0,0.00020273,2]
[368199750,1751057448145,-460.0,0.00020273,2]
[368199752,1751057448157,-460.0,0.00020273,2]
[368199754,1751057448167,-460.0,0.00020273,2]
[368199756,1751057448177,-775.32,0.00020273,2]
[368199758,1751057448186,-460.0,0.00020273,2]
[368199760,1751057448196,-460.0,0.00020273,2]
[368199762,1751057448205,-460.0,0.00020273,2]
[368199764,1751057448215,-460.0,0.00020273,2]
[368199766,1751057448224,-460.0,0.00020273,2]
[368199768,1751057448233,-460.0,0.00020273,2]
[368199770,1751057448243,-460.0,0.00020273,2]
[368199772,1751057448252,-460.0,0.00020273,2]
[368199774,1751057448262,-560.37,0.00020273,2]
[368199776,1751057448271,-460.0,0.00020273,2]
[368199778,1751057448281,-460.0,0.00020273,2]
[368199780,1751057448290,-460.0,0.00020273,2]
[368199782,1751057448300,-460.0,0.00020273,2]
[368199784,1751057448310,-532.28,0.00020273,2]
[368199786,1751057448322,-478.46342209,0.00020273,2]
[368199788,1751057448334,-460.0,0.00020273,2]
[368199790,1751057448344,-703.46,0.00020273,2]
[368199792,1751057448354,-460.0,0.00020273,2]
[368199794,1751057448363,-495.33,0.00020273,2]
[368199796,1751057448372,-460.0,0.00020273,2]
[368199798,1751057448382,-745.75,0.00020273,2]
[368199800,1751057448391,-693.38,0.00020273,2]
[368199802,1751057448401,-575.63,0.00020273,2]
[368199804,1751057448410,-2984.6,0.00020273,2]
[368199806,1751057448421,-460.0,0.00020273,2]
[368199808,1751057448430,-1038.52,0.00020273,2]
[368199810,1751057448440,-460.0,0.00020273,2]
[368199813,1751057448450,-657.08,0.00020273,2]
[368199815,1751057448460,-997.22,0.00020273,2]
[368199817,1751057448469,-483.84,0.00020273,2]
[368199818,1751057448478,-460.0,0.00020273,2]
[368199821,1751057448488,-1832.72,0.00020273,2]
[368199822,1751057448497,-3210.91,0.00020273,2]
[368199825,1751057448507,-460.0,0.00020273,2]
[368199826,1751057448516,-460.0,0.00020273,2]
[368199829,1751057448527,-3005.55,0.00020273,2]
[368199831,1751057448536,-469.7,0.00020273,2]
[368199833,1751057448545,-460.0,0.00020273,2]
[368199835,1751057448555,-545.24,0.00020273,2]
[368199837,1751057448564,-523.16,0.00020273,2]
[368199839,1751057448574,-2973.32,0.00020273,2]
[368199841,1751057448583,-1517.0,0.00020273,2]
[368199843,1751057448592,-3468.68,0.00020273,2]
[368199845,1751057448602,-1615.82,0.00020273,2]
[368199847,1751057448611,-460.0,0.00020273,2]
[368199849,1751057448621,-460.0,0.00020273,2]
[368199851,1751057448630,-578.54,0.00020273,2]
[368199853,1751057448639,-697.99,0.00020273,2]
[368199855,1751057448649,-460.0,0.00020273,2]
[368199857,1751057448658,-460.0,0.00020273,2]
[368199859,1751057448668,-468.39,0.00020273,2]
[368199861,1751057448678,-460.0,0.00020273,2]
[368199863,1751057448688,-270.14,0.00020273,2]
[368199865,1751057448697,-802.01,0.00020273,2]
[368199867,1751057448706,-1109.21,0.00020273,2]
[368199869,1751057448715,-4979.54,0.00020273,2]
[368199871,1751057448726,-216.043074,0.00020273,2]
[368199873,1751057448735,-1983.49,0.00020273,2]
[368199875,1751057448744,-460.0,0.00020273,2]
[368199877,1751057448754,-500.0,0.00020273,2]
[368199879,1751057448764,-460.0,0.00020273,2]
[368199881,1751057448773,-827.65,0.00020273,2]
[368199883,1751057448782,-460.0,0.00020273,2]
[368199885,1751057448791,-327.58500441,0.00020273,2]
[368199887,1751057448800,-4721.75,0.00020273,2]
[368199888,1751057448809,-1506.67,0.00020273,2]
[368199891,1751057448818,-593.36,0.00020273,2]
[368199892,1751057448828,-734.72,0.00020273,2]
[368199894,1751057448837,-607.75,0.00020273,2]
[368199897,1751057448847,-460.0,0.00020273,2]
[368199899,1751057448856,-460.0,0.00020273,2]
[368199901,1751057448866,-702.85,0.00020273,2]
[368199903,1751057448876,-1276.3,0.00020273,2]
[368199904,1751057448889,-375.2314502,0.00020273,2]
[368199906,1751057448898,-678.03,0.00020273,2]
[368199907,1751057448907,-634.71,0.00020273,2]
[368199908,1751057448918,-1480.94,0.00020273,2]
[368199909,1751057448927,-595.85,0.00020273,2]
[368199910,1751057448937,-460.0,0.00020273,2]
[368199911,1751057448946,-467.82722845,0.00020273,2]
[368199912,1751057448956,-551.29,0.00020273,2]
[368199913,1751057448965,-2162.5,0.00020273,2]
[368199914,1751057448974,-460.0,0.00020273,2]
[368199915,1751057448983,-460.0,0.00020273,2]
[368199916,1751057448992,-855.24,0.00020273,2]
[368199917,1751057449001,-644.2,0.00020273,2]
[368199918,1751057449010,-706.72,0.00020273,2]
[368199919,1751057449020,-476.41,0.00020273,2]
[368199920,1751057449029,-460.0,0.00020273,2]
[368199921,1751057449038,-502.54,0.00020273,2]
[368199922,1751057449048,-460.0,0.00020273,2]
[368199924,1751057449057,-1822.66,0.00020273,2]
[368199926,1751057449067,-3453.91,0.00020273,2]
[368199928,1751057449076,-460.0,0.00020273,2]
[368199930,1751057449086,-325.7,0.00020273,2]
[368199932,1751057449095,-778.4,0.00020273,2]
[368199934,1751057449105,-460.0,0.00020273,2]
[368199936,1751057449114,-460.0,0.00020273,2]
[368199938,1751057449125,-585.59,0.00020273,2]
[368199940,1751057449134,-1010.79,0.00020273,2]
[368199942,1751057449144,-658.37,0.00020273,2]
[368199944,1751057449153,-5350.64,0.00020273,2]
[368199946,1751057449164,-460.0,0.00020273,2]
[368199948,1751057449173,-460.0,0.00020273,2]
[368199950,1751057449182,-460.0,0.00020273,2]
[368199952,1751057449192,-153.0,0.00020274,2]
[368199954,1751057449201,-153.0,0.00020274,2]
[368199956,1751057449211,-153.0,0.00020274,2]
[368199958,1751057449222,-153.0,0.00020274,2]
[368199960,1751057449232,-153.0,0.00020274,2]
[368199962,1751057449241,-153.0,0.00020274,2]
[368199964,1751057449251,-153.0,0.00020274,2]
[368199966,1751057449260,-153.0,0.00020274,2]
[368199968,1751057449270,-153.0,0.00020274,2]
[368199970,1751057449280,-1000.0,0.00020339,2]
[368199972,1751057449289,-5400.64502003,0.00020383,3]
[368199974,1751057449298,-151.0,0.00020384,2]
[368199976,1751057449309,-500.0,0.00020384,2]
[368199978,1751057449320,-151.0,0.00020384,2]
[368199980,1751057449331,-500.0,0.00020384,2]
[368199982,1751057449341,-151.0,0.00020384,2]
[368199984,1751057449351,-500.0,0.00020384,2]
[368199986,1751057449361,-151.0,0.00020384,2]
[368199988,1751057449371,-151.0,0.00020384,2]
[368199990,1751057449380,-272.65372998,0.00020384,2]
[368199992,1751057449390,-151.0,0.00020384,2]
[368199994,1751057449400,-206.90205378,0.00020384,2]
[368199997,1751057449410,-151.0,0.00020384,2]
[368199998,1751057449420,-151.0,0.00020384,2]
[368200000,1751057449429,-151.0,0.00020384,2]
[368200002,1751057449439,-151.0,0.00020384,2]
[368200004,1751057449448,-151.0,0.00020384,2]
[368200006,1751057449458,-500.0,0.00020384,2]
[368200008,1751057449467,-500.0,0.00020384,2]
[368200010,1751057449477,-500.0,0.00020384,2]
[368200013,1751057449486,-151.0,0.00020384,2]
[368200015,1751057449495,-151.0,0.00020384,2]
[368200016,1751057449505,-237.02162087,0.00020384,2]
[368200019,1751057449514,-151.0,0.00020384,2]
[368200020,1751057449523,-168.0,0.00020386,2]
[368200022,1751057449532,-1409.0,0.00020395,2]
[368200024,1751057449542,-151.3624503,0.00020411,2]
[368200026,1751057449551,-500.0,0.00020411,2]
[368200028,1751057449560,-500.0,0.00020411,2]
[368200030,1751057449569,-500.0,0.00020411,2]
[368200032,1751057449579,-151.0,0.00020411,2]
[368200034,1751057449588,-151.0,0.00020411,2]
[368200036,1751057449598,-151.0,0.00020411,2]
[368200038,1751057449607,-151.0,0.00020411,2]
[368200040,1751057449618,-500.0,0.00020411,2]
[368200043,1751057449627,-500.0,0.00020411,2]
[368200045,1751057449636,-500.0,0.00020411,2]
[368200047,1751057449646,-250.31529006,0.00020411,2]
[368200048,1751057449655,-151.0,0.00020411,2]
[368200051,1751057449664,-151.0,0.00020411,2]
[368200053,1751057449675,-467.98735537,0.00020439,2]
[368200054,1751057449684,-500.0,0.00020439,2]
[368200056,1751057449693,-500.0,0.00020439,2]
[368200059,1751057449703,-151.0,0.00020439,2]
[368200060,1751057449712,-198.0,0.00020439,2]
[368200062,1751057449722,-216.78937437,0.00020439,2]
[368200064,1751057449731,-183.46578051,0.00020439,2]
[368200066,1751057449741,-151.0,0.00020439,2]
[368200068,1751057449751,-500.0,0.00020439,2]
[368200070,1751057449761,-500.0,0.00020439,2]
[368200073,1751057449770,-198.0,0.00020439,2]
[368200075,1751057449780,-198.0,0.00020439,2]
[368200076,1751057449789,-453.0,0.00020466,2]
[368200079,1751057449799,-453.0,0.00020466,2]
[368200080,1751057449808,-198.0,0.00020466,2]
[368200083,1751057449818,-500.0,0.00020466,2]
[368200084,1751057449827,-151.0,0.00020466,2]
[368200086,1751057449837,-151.0,0.00020494,2]
[368200088,1751057449846,-500.0,0.00020546,2]
[368200090,1751057449855,-500.0,0.00020546,2]
[368200093,1751057449864,-500.0,0.00020546,2]
[368200094,1751057449874,-522.5899123,0.00020546,2]
[368200100,1751057449920,-434.20102481,0.00020547,2]
[368200102,1751057449929,-460.0,0.00020547,2]
[368200104,1751057449938,-460.0,0.00020547,2]
[368200106,1751057449947,-460.0,0.00020547,2]
[368200108,1751057449957,-460.0,0.00020547,2]
[368200110,1751057449967,-460.0,0.00020547,2]
[368200112,1751057449976,-484.52,0.00020547,2]
[368200114,1751057449985,-460.0,0.00020547,2]
[368200116,1751057449995,-460.0,0.00020547,2]
[368200118,1751057450004,-460.0,0.00020547,2]
[368200120,1751057450013,-461.91124575,0.00020547,2]
[368200122,1751057450022,-460.0,0.00020547,2]
[368200124,1751057450031,-460.0,0.00020547,2]
[368200126,1751057450040,-460.0,0.00020547,2]
[368200128,1751057450049,-460.0,0.00020547,2]
[368200130,1751057450057,-460.0,0.00020547,2]
[368200132,1751057450067,-460.0,0.00020547,2]
[368200134,1751057450076,-775.32,0.00020547,2]
[368200136,1751057450085,-460.0,0.00020547,2]
[368200138,1751057450094,-460.0,0.00020547,2]
[368200140,1751057450103,-460.0,0.00020547,2]
[368200142,1751057450112,-460.0,0.00020547,2]
[368200144,1751057450122,-460.0,0.00020547,2]
[368200146,1751057450131,-460.0,0.00020547,2]
[368200148,1751057450139,-460.0,0.00020547,2]
[368200150,1751057450148,-460.0,0.00020547,2]
[368200152,1751057450157,-560.37,0.00020547,2]
[368200154,1751057450166,-460.0,0.00020547,2]
[368200156,1751057450175,-460.0,0.00020547,2]
[368200158,1751057450184,-488.4538692,0.00020547,2]
[368200160,1751057450193,-460.0,0.00020547,2]
[368200162,1751057450202,-460.0,0.00020547,2]
[368200163,1751057450211,-703.46,0.00020547,2]
[368200165,1751057450220,-460.0,0.00020547,2]
[368200167,1751057450231,-495.33,0.00020547,2]
[368200170,1751057450241,-460.0,0.00020547,2]
[368200172,1751057450251,-745.75,0.00020547,2]
[368200174,1751057450260,-693.38,0.00020547,2]
[368200176,1751057450269,-575.63,0.00020547,2]
[368200178,1751057450279,-2984.6,0.00020547,2]
[368200180,1751057450288,-460.0,0.00020547,2]
[368200182,1751057450297,-1038.52,0.00020547,2]
[368200183,1751057450306,-460.0,0.00020547,2]
[368200186,1751057450316,-997.22,0.00020547,2]
[368200188,1751057450325,-657.08,0.00020547,2]
[368200189,1751057450336,-483.84,0.00020547,2]
[368200192,1751057450346,-460.0,0.00020547,2]
[368200194,1751057450355,-1832.72,0.00020547,2]
[368200195,1751057450365,-3210.91,0.00020547,2]
[368200197,1751057450374,-460.0,0.00020547,2]
[368200200,1751057450384,-460.0,0.00020547,2]
[368200201,1751057450393,-3005.55,0.00020547,2]
[368200204,1751057450402,-469.7,0.00020547,2]
[368200206,1751057450412,-460.0,0.00020547,2]
[368200208,1751057450421,-545.24,0.00020547,2]
[368200210,1751057450431,-523.16,0.00020547,2]
[368200212,1751057450440,-2973.32,0.00020547,2]
[368200214,1751057450449,-1385.66713457,0.00020547,2]
[368200240,1751057450680,-659.18,0.00020273,2]
[368200242,1751057450690,-131.33286543,0.00020547,2]
[368200244,1751057450699,-3468.68,0.00020547,2]
[368200246,1751057450709,-1615.82,0.00020547,2]
[368200248,1751057450719,-460.0,0.00020547,2]
[368200250,1751057450728,-460.0,0.00020547,2]
[368200252,1751057450737,-578.54,0.00020547,2]
[368200254,1751057450746,-697.99,0.00020547,2]
[368200256,1751057450755,-460.0,0.00020547,2]
[368200258,1751057450764,-468.39,0.00020547,2]
[368200260,1751057450773,-460.0,0.00020547,2]
[368200262,1751057450782,-802.01,0.00020547,2]
[368200264,1751057450791,-1109.21,0.00020547,2]
[368200266,1751057450800,-4979.54,0.00020547,2]
[368200268,1751057450811,-1983.49,0.00020547,2]
[368200270,1751057450822,-577.95137339,0.00020547,2]
[368200272,1751057450831,-460.0,0.00020547,2]
[368200274,1751057450840,-810.37672938,0.00020547,2]
[368200302,1751057451100,-460.0,0.00019178,2]
[368200304,1751057451109,-460.0,0.00019178,2]
[368200306,1751057451118,-460.0,0.00019452,2]
[368200308,1751057451128,-221.69970391,0.00019726,2]
[368200310,1751057451139,-238.30029609,0.00019726,2]
[368200313,1751057451149,-17.27327062,0.00020547,2]
[368200314,1751057451158,-460.0,0.00020547,2]
[368200316,1751057451168,-4721.75,0.00020547,2]
[368200319,1751057451177,-1506.67,0.00020547,2]
[368200321,1751057451187,-593.36,0.00020547,2]